[Event "Titled Tuesday Blitz November 14 Late 2023"]
[White "Gyulamiryan-koryun"]
[Black "Suspenser17"]
[WhiteElo "1875"]
[BlackElo "2410"]
[Result "0-1"]
[Round "2"]
[TimeControl "180+1"]
[Date "2023.11.14"]
[WhiteClock "0:00:00"]
[BlackClock "0:01:11"]
[Board "185"]

1. e4 {[%clk 0:02:58]}  e5 {[%clk 0:02:50]} 2. Nf3 {[%clk 0:02:57]}  Nc6 {[%clk 0:02:49]} 3. Nc3 {[%clk 0:02:57]}  Nf6 {[%clk 0:02:50]} 4. Nxe5 {[%clk 0:02:56]}  Nxe5 {[%clk 0:02:49]} 5. d4 {[%clk 0:02:56]}  Ng6 {[%clk 0:02:44]} 6. e5 {[%clk 0:02:56]}  Ng8 {[%clk 0:02:43]} 7. g3 {[%clk 0:02:52]}  d6 {[%clk 0:02:43]} 8. exd6 {[%clk 0:02:42]}  Bxd6 {[%clk 0:02:41]} 9. Bg2 {[%clk 0:02:41]}  Nf6 {[%clk 0:02:39]} 10. O-O {[%clk 0:02:40]}  O-O {[%clk 0:02:38]} 11. Bg5 {[%clk 0:02:37]}  h6 {[%clk 0:02:37]} 12. Be3 {[%clk 0:02:35]}  c6 {[%clk 0:02:36]} 13. Qd2 {[%clk 0:02:33]}  Be6 {[%clk 0:02:35]} 14. h4 {[%clk 0:02:18]}  Nd5 {[%clk 0:02:33]} 15. Bxh6 {[%clk 0:02:13]}  gxh6 {[%clk 0:02:31]} 16. Qxh6 {[%clk 0:02:13]}  Nxc3 {[%clk 0:02:29]} 17. bxc3 {[%clk 0:02:12]}  Re8 {[%clk 0:02:21]} 18. h5 {[%clk 0:02:03]}  Bf8 {[%clk 0:02:21]} 19. Qd2 {[%clk 0:01:58]}  Ne7 {[%clk 0:02:16]} 20. Rae1 {[%clk 0:01:49]}  Nf5 {[%clk 0:02:03]} 21. Re4 {[%clk 0:01:41]}  Bh6 {[%clk 0:02:01]} 22. Qe2 {[%clk 0:01:33]}  Bd5 {[%clk 0:01:35]} 23. Rxe8+ {[%clk 0:01:32]}  Qxe8 {[%clk 0:01:35]} 24. Qg4+ {[%clk 0:01:30]}  Ng7 {[%clk 0:01:36]} 25. Bxd5 {[%clk 0:01:26]}  cxd5 {[%clk 0:01:36]} 26. Rb1 {[%clk 0:01:17]}  b6 {[%clk 0:01:36]} 27. Qf3 {[%clk 0:01:05]}  Qe4 {[%clk 0:01:34]} 28. Kg2 {[%clk 0:00:56]}  Rc8 {[%clk 0:01:33]} 29. Qxe4 {[%clk 0:00:40]}  dxe4 {[%clk 0:01:22]} 30. Rb3 {[%clk 0:00:40]}  Bd2 {[%clk 0:01:20]} 31. Rb5 {[%clk 0:00:23]}  Rxc3 {[%clk 0:01:18]} 32. Rd5 {[%clk 0:00:15]}  Rxc2 {[%clk 0:01:16]} 33. Rd8+ {[%clk 0:00:12]}  Kh7 {[%clk 0:01:16]} 34. d5 {[%clk 0:00:12]}  Be3 {[%clk 0:01:15]} 35. g4 {[%clk 0:00:08]}  Rxf2+ {[%clk 0:01:14]} 36. Kg3 {[%clk 0:00:07]}  Rd2 {[%clk 0:01:13]} 37. d6 {[%clk 0:00:00]}  Ne6 {[%clk 0:01:11]} 0-1


[Site "https://www.chess.com"]

[Event "Titled Tuesday Blitz November 14 Late 2023"]
[White "Szyszylo, Rafal"]
[Black "Vargas, Mauricio"]
[WhiteFideId "1109626"]
[BlackFideId "4404572"]
[WhiteElo "2407"]
[BlackElo "1852"]
[Result "1-0"]
[Round "2"]
[TimeControl "180+1"]
[Date "2023.11.14"]
[WhiteClock "0:00:32"]
[BlackClock "0:01:00"]
[Board "186"]

1. e4 {[%clk 0:02:59]}  d5 {[%clk 0:02:57]} 2. exd5 {[%clk 0:02:59]}  Qxd5 {[%clk 0:02:57]} 3. Nc3 {[%clk 0:02:59]}  Qa5 {[%clk 0:02:57]} 4. d4 {[%clk 0:03:00]}  c6 {[%clk 0:02:58]} 5. Nf3 {[%clk 0:03:00]}  Nf6 {[%clk 0:02:58]} 6. h3 {[%clk 0:02:59]}  Bf5 {[%clk 0:02:58]} 7. Bd2 {[%clk 0:02:59]}  e6 {[%clk 0:02:58]} 8. Bc4 {[%clk 0:02:58]}  Qc7 {[%clk 0:02:57]} 9. g4 {[%clk 0:02:56]}  Bg6 {[%clk 0:02:56]} 10. Ne5 {[%clk 0:02:56]}  Bd6 {[%clk 0:02:56]} 11. f4 {[%clk 0:02:55]}  Nbd7 {[%clk 0:02:47]} 12. h4 {[%clk 0:02:55]}  h5 {[%clk 0:02:46]} 13. Nxg6 {[%clk 0:02:51]}  fxg6 {[%clk 0:02:45]} 14. g5 {[%clk 0:02:35]}  Ng4 {[%clk 0:02:44]} 15. Bxe6 {[%clk 0:02:25]}  Bxf4 {[%clk 0:02:42]} 16. Bxg4 {[%clk 0:02:24]}  Bg3+ {[%clk 0:02:37]} 17. Kf1 {[%clk 0:02:24]}  hxg4 {[%clk 0:02:30]} 18. Qxg4 {[%clk 0:02:14]}  Rf8+ {[%clk 0:02:29]} 19. Kg2 {[%clk 0:02:11]}  Rf2+ {[%clk 0:02:27]} 20. Kh3 {[%clk 0:02:11]}  Rxd2 {[%clk 0:01:58]} 21. Ne4 {[%clk 0:01:55]}  Rh2+ {[%clk 0:01:51]} 22. Rxh2 {[%clk 0:01:52]}  Bxh2 {[%clk 0:01:51]} 23. Qe6+ {[%clk 0:01:51]}  Kd8 {[%clk 0:01:48]} 24. Qg8+ {[%clk 0:01:29]}  Ke7 {[%clk 0:01:46]} 25. Qxg7+ {[%clk 0:01:26]}  Ke8 {[%clk 0:01:38]} 26. Qxg6+ {[%clk 0:01:17]}  Ke7 {[%clk 0:01:37]} 27. Qg7+ {[%clk 0:00:58]}  Ke8 {[%clk 0:01:35]} 28. Re1 {[%clk 0:00:52]}  Kd8 {[%clk 0:01:08]} 29. Qg8+ {[%clk 0:00:47]}  Ke7 {[%clk 0:01:04]} 30. Nf6+ {[%clk 0:00:34]}  Kd6 {[%clk 0:01:00]} 31. Qe6# {[%clk 0:00:32]} 1-0


[Site "https://www.chess.com"]

[Event "Titled Tuesday Blitz November 14 Late 2023"]
[White "Brodsky, David"]
[Black "Nakamura, Hikaru"]
[WhiteFideId "2073250"]
[BlackFideId "2016192"]
[WhiteElo "2797"]
[BlackElo "3293"]
[Result "0-1"]
[Round "3"]
[TimeControl "180+1"]
[Date "2023.11.14"]
[WhiteClock "0:00:00"]
[BlackClock "0:00:28"]
[Board "1"]

1. e4 {[%clk 0:03:00]}  a6 {[%clk 0:02:47]} 2. d4 {[%clk 0:03:00]}  e6 {[%clk 0:02:47]} 3. Nf3 {[%clk 0:02:59]}  d5 {[%clk 0:02:47]} 4. Nbd2 {[%clk 0:02:56]}  c5 {[%clk 0:02:44]} 5. dxc5 {[%clk 0:02:53]}  Bxc5 {[%clk 0:02:43]} 6. Bd3 {[%clk 0:02:54]}  Nf6 {[%clk 0:02:42]} 7. O-O {[%clk 0:02:53]}  Nc6 {[%clk 0:02:42]} 8. c3 {[%clk 0:02:48]}  Qc7 {[%clk 0:02:39]} 9. Qe2 {[%clk 0:02:43]}  O-O {[%clk 0:02:37]} 10. e5 {[%clk 0:02:34]}  Ng4 {[%clk 0:02:30]} 11. Nb3 {[%clk 0:01:57]}  Bb6 {[%clk 0:02:29]} 12. Bxh7+ {[%clk 0:01:22]}  Kxh7 {[%clk 0:02:30]} 13. Ng5+ {[%clk 0:01:22]}  Kg8 {[%clk 0:02:30]} 14. Qxg4 {[%clk 0:01:23]}  Qxe5 {[%clk 0:02:31]} 15. Qh4 {[%clk 0:01:10]}  Qf5 {[%clk 0:02:30]} 16. Be3 {[%clk 0:01:03]}  Bd8 {[%clk 0:02:30]} 17. Qg3 {[%clk 0:01:03]}  f6 {[%clk 0:02:18]} 18. Nf3 {[%clk 0:01:03]}  e5 {[%clk 0:02:18]} 19. Rad1 {[%clk 0:00:59]}  Ne7 {[%clk 0:02:03]} 20. Rfe1 {[%clk 0:00:51]}  Qh5 {[%clk 0:01:49]} 21. Qh4 {[%clk 0:00:37]}  Qxh4 {[%clk 0:01:47]} 22. Nxh4 {[%clk 0:00:38]}  b6 {[%clk 0:01:47]} 23. f4 {[%clk 0:00:33]}  e4 {[%clk 0:01:06]} 24. c4 {[%clk 0:00:23]}  dxc4 {[%clk 0:00:53]} 25. Nd2 {[%clk 0:00:23]}  Nd5 {[%clk 0:00:54]} 26. Nxc4 {[%clk 0:00:10]}  Nxe3 {[%clk 0:00:54]} 27. Nxe3 {[%clk 0:00:10]}  b5 {[%clk 0:00:51]} 28. Ng6 {[%clk 0:00:10]}  Re8 {[%clk 0:00:51]} 29. f5 {[%clk 0:00:10]}  Bb6 {[%clk 0:00:51]} 30. g4 {[%clk 0:00:10]}  Ra7 {[%clk 0:00:45]} 31. Kg2 {[%clk 0:00:09]}  Bb7 {[%clk 0:00:42]} 32. Nf4 {[%clk 0:00:06]}  Bc8 {[%clk 0:00:38]} 33. Nfd5 {[%clk 0:00:05]}  Bc5 {[%clk 0:00:38]} 34. b4 {[%clk 0:00:05]}  Bf8 {[%clk 0:00:38]} 35. Rc1 {[%clk 0:00:06]}  a5 {[%clk 0:00:36]} 36. a3 {[%clk 0:00:05]}  axb4 {[%clk 0:00:36]} 37. axb4 {[%clk 0:00:06]}  Bb7 {[%clk 0:00:36]} 38. Re2 {[%clk 0:00:05]}  Bd6 {[%clk 0:00:32]} 39. Rd1 {[%clk 0:00:03]}  Be5 {[%clk 0:00:31]} 40. Rdd2 {[%clk 0:00:02]}  Ra3 {[%clk 0:00:31]} 41. h3 {[%clk 0:00:02]}  Rd3 {[%clk 0:00:31]} 42. Nb6 {[%clk 0:00:00]}  Bf4 {[%clk 0:00:28]} 0-1


[Site "https://www.chess.com"]

[Event "Titled Tuesday Blitz November 14 Late 2023"]
[White "Andreikin, Dmitry"]
[Black "Maksimovic, Bojan"]
[WhiteFideId "4158814"]
[BlackFideId "14408120"]
[WhiteElo "3131"]
[BlackElo "2793"]
[Result "1/2-1/2"]
[Round "3"]
[TimeControl "180+1"]
[Date "2023.11.14"]
[WhiteClock "0:02:02"]
[BlackClock "0:00:46"]
[Board "2"]

1. d4 {[%clk 0:03:00]}  Nf6 {[%clk 0:03:00]} 2. c4 {[%clk 0:03:01]}  g6 {[%clk 0:02:59]} 3. Nc3 {[%clk 0:03:00]}  Bg7 {[%clk 0:03:00]} 4. e4 {[%clk 0:03:00]}  d6 {[%clk 0:03:00]} 5. h3 {[%clk 0:03:01]}  Nbd7 {[%clk 0:02:49]} 6. Be3 {[%clk 0:03:00]}  e5 {[%clk 0:02:49]} 7. d5 {[%clk 0:03:00]}  Nc5 {[%clk 0:02:44]} 8. f3 {[%clk 0:03:00]}  h5 {[%clk 0:02:38]} 9. b4 {[%clk 0:02:58]}  Ncd7 {[%clk 0:02:37]} 10. h4 {[%clk 0:02:55]}  a5 {[%clk 0:02:30]} 11. a3 {[%clk 0:02:55]}  Bh6 {[%clk 0:02:29]} 12. Bxh6 {[%clk 0:02:54]}  Rxh6 {[%clk 0:02:30]} 13. Bd3 {[%clk 0:02:53]}  Kf8 {[%clk 0:02:23]} 14. Nge2 {[%clk 0:02:53]}  Kg7 {[%clk 0:02:22]} 15. Rc1 {[%clk 0:02:51]}  Rh8 {[%clk 0:02:16]} 16. Qd2 {[%clk 0:02:51]}  axb4 {[%clk 0:02:16]} 17. axb4 {[%clk 0:02:51]}  Nh7 {[%clk 0:02:05]} 18. Qe3 {[%clk 0:02:48]}  c6 {[%clk 0:01:58]} 19. g3 {[%clk 0:02:42]}  c5 {[%clk 0:01:51]} 20. b5 {[%clk 0:02:36]}  Ra3 {[%clk 0:01:31]} 21. Qd2 {[%clk 0:02:27]}  Ndf6 {[%clk 0:00:49]} 22. Nd1 {[%clk 0:02:26]}  Bd7 {[%clk 0:00:46]} 23. Nf2 {[%clk 0:02:25]}  Qe7 {[%clk 0:00:46]} 24. Rc3 {[%clk 0:02:19]}  Ra1+ {[%clk 0:00:46]} 25. Rc1 {[%clk 0:02:19]}  Ra3 {[%clk 0:00:46]} 26. O-O {[%clk 0:02:18]}  Rha8 {[%clk 0:00:46]} 27. Rc3 {[%clk 0:02:16]}  Ra2 {[%clk 0:00:45]} 28. Rc2 {[%clk 0:02:16]}  R2a3 {[%clk 0:00:45]} 29. Rc3 {[%clk 0:02:04]}  Ra2 {[%clk 0:00:45]} 30. Rc2 {[%clk 0:02:04]}  R2a3 {[%clk 0:00:46]} 31. Rc3 {[%clk 0:02:02]} 1/2-1/2


[Site "https://www.chess.com"]

[Event "Titled Tuesday Blitz November 14 Late 2023"]
[White "Borsuk, Konstantin"]
[Black "Nihal Sarin"]
[WhiteFideId "14113406"]
[BlackFideId "25092340"]
[WhiteElo "2788"]
[BlackElo "3103"]
[Result "0-1"]
[Round "3"]
[TimeControl "180+1"]
[Date "2023.11.14"]
[WhiteClock "0:00:00"]
[BlackClock "0:00:37"]
[Board "3"]

1. d4 {[%clk 0:03:00]}  d5 {[%clk 0:03:00]} 2. c3 {[%clk 0:03:01]}  Nf6 {[%clk 0:03:00]} 3. Nf3 {[%clk 0:03:01]}  Bf5 {[%clk 0:03:00]} 4. Bf4 {[%clk 0:03:01]}  e6 {[%clk 0:03:00]} 5. Nbd2 {[%clk 0:03:01]}  Bd6 {[%clk 0:03:01]} 6. Bxd6 {[%clk 0:02:59]}  cxd6 {[%clk 0:03:02]} 7. e3 {[%clk 0:02:56]}  O-O {[%clk 0:03:02]} 8. Nh4 {[%clk 0:02:54]}  Be4 {[%clk 0:03:02]} 9. Nxe4 {[%clk 0:02:53]}  dxe4 {[%clk 0:03:03]} 10. g4 {[%clk 0:02:49]}  Nc6 {[%clk 0:02:59]} 11. Ng2 {[%clk 0:02:48]}  e5 {[%clk 0:02:57]} 12. Be2 {[%clk 0:02:46]}  d5 {[%clk 0:02:55]} 13. h4 {[%clk 0:02:42]}  Nd7 {[%clk 0:02:55]} 14. Qb3 {[%clk 0:02:38]}  Nb6 {[%clk 0:02:55]} 15. g5 {[%clk 0:02:36]}  Kh8 {[%clk 0:02:55]} 16. a4 {[%clk 0:02:33]}  exd4 {[%clk 0:02:51]} 17. exd4 {[%clk 0:02:32]}  f5 {[%clk 0:02:41]} 18. a5 {[%clk 0:02:07]}  Nc8 {[%clk 0:02:41]} 19. Qxb7 {[%clk 0:02:06]}  N8e7 {[%clk 0:02:41]} 20. b4 {[%clk 0:01:44]}  f4 {[%clk 0:02:34]} 21. Bg4 {[%clk 0:01:42]}  Rb8 {[%clk 0:02:32]} 22. Qd7 {[%clk 0:01:41]}  Qxd7 {[%clk 0:02:09]} 23. Bxd7 {[%clk 0:01:41]}  Rb7 {[%clk 0:02:10]} 24. Bg4 {[%clk 0:01:29]}  Rc7 {[%clk 0:02:10]} 25. f3 {[%clk 0:01:25]}  a6 {[%clk 0:02:06]} 26. O-O {[%clk 0:01:22]}  e3 {[%clk 0:02:06]} 27. Ra3 {[%clk 0:01:14]}  Na7 {[%clk 0:02:06]} 28. Re1 {[%clk 0:00:57]}  Nb5 {[%clk 0:02:05]} 29. Rb3 {[%clk 0:00:58]}  Nxc3 {[%clk 0:01:33]} 30. Kh2 {[%clk 0:00:49]}  Nb5 {[%clk 0:01:31]} 31. Nxf4 {[%clk 0:00:38]}  Rxf4 {[%clk 0:01:24]} 32. Rbxe3 {[%clk 0:00:37]}  Ng8 {[%clk 0:01:10]} 33. Re8 {[%clk 0:00:33]}  Nxd4 {[%clk 0:01:09]} 34. Ra8 {[%clk 0:00:27]}  Rxg4 {[%clk 0:00:44]} 35. Ree8 {[%clk 0:00:27]}  Nxf3+ {[%clk 0:00:36]} 36. Kh3 {[%clk 0:00:27]}  Rxh4+ {[%clk 0:00:36]} 37. Kg3 {[%clk 0:00:27]}  h5 {[%clk 0:00:37]} 38. Rxg8+ {[%clk 0:00:19]}  Kh7 {[%clk 0:00:37]} 39. Rh8+ {[%clk 0:00:15]}  Kg6 {[%clk 0:00:37]} 40. Rxa6+ {[%clk 0:00:14]}  Kxg5 {[%clk 0:00:37]} 41. Kxf3 {[%clk 0:00:15]}  Rc3+ {[%clk 0:00:36]} 42. Ke2 {[%clk 0:00:09]}  Rh2+ {[%clk 0:00:36]} 43. Kd1 {[%clk 0:00:00]}  Ra3 {[%clk 0:00:37]} 0-1


[Site "https://www.chess.com"]

[Event "Titled Tuesday Blitz November 14 Late 2023"]
[White "Naroditsky, Daniel"]
[Black "Rastbod, Ali"]
[WhiteFideId "2026961"]
[BlackFideId "12567477"]
[WhiteElo "3100"]
[BlackElo "2777"]
[Result "1-0"]
[Round "3"]
[TimeControl "180+1"]
[Date "2023.11.14"]
[WhiteClock "0:00:06"]
[BlackClock "0:00:07"]
[Board "4"]

1. d4 {[%clk 0:03:00]}  Nf6 {[%clk 0:02:58]} 2. Nc3 {[%clk 0:03:01]}  d5 {[%clk 0:02:58]} 3. Bf4 {[%clk 0:03:02]}  c5 {[%clk 0:02:59]} 4. Nf3 {[%clk 0:03:00]}  cxd4 {[%clk 0:02:54]} 5. Qxd4 {[%clk 0:02:53]}  Nc6 {[%clk 0:02:53]} 6. Qd3 {[%clk 0:02:51]}  d4 {[%clk 0:02:34]} 7. Nb5 {[%clk 0:02:00]}  Nd5 {[%clk 0:02:33]} 8. Bg3 {[%clk 0:01:40]}  a6 {[%clk 0:02:20]} 9. e4 {[%clk 0:01:10]}  axb5 {[%clk 0:01:23]} 10. exd5 {[%clk 0:01:10]}  Qxd5 {[%clk 0:01:22]} 11. Qxb5 {[%clk 0:01:06]}  Qe4+ {[%clk 0:00:59]} 12. Be2 {[%clk 0:01:04]}  Qxc2 {[%clk 0:00:34]} 13. Nxd4 {[%clk 0:00:42]}  Qa4 {[%clk 0:00:35]} 14. Nxc6 {[%clk 0:00:28]}  bxc6 {[%clk 0:00:36]} 15. Qxa4 {[%clk 0:00:25]}  Rxa4 {[%clk 0:00:36]} 16. O-O {[%clk 0:00:22]}  Bb7 {[%clk 0:00:30]} 17. Rfc1 {[%clk 0:00:20]}  f6 {[%clk 0:00:27]} 18. Bf3 {[%clk 0:00:19]}  Ra6 {[%clk 0:00:26]} 19. b4 {[%clk 0:00:19]}  Rb6 {[%clk 0:00:26]} 20. a4 {[%clk 0:00:09]}  e5 {[%clk 0:00:23]} 21. b5 {[%clk 0:00:07]}  cxb5 {[%clk 0:00:18]} 22. a5 {[%clk 0:00:08]}  Bxf3 {[%clk 0:00:16]} 23. axb6 {[%clk 0:00:08]}  Bd5 {[%clk 0:00:07]} 24. Ra7 {[%clk 0:00:06]} 1-0


[Site "https://www.chess.com"]

[Event "Titled Tuesday Blitz November 14 Late 2023"]
[White "Sokolovsky, Yahli"]
[Black "Tabatabaei, M. Amin"]
[WhiteFideId "2820242"]
[BlackFideId "12521213"]
[WhiteElo "2773"]
[BlackElo "3091"]
[Result "0-1"]
[Round "3"]
[TimeControl "180+1"]
[Date "2023.11.14"]
[WhiteClock "0:00:00"]
[BlackClock "0:00:05"]
[Board "5"]

1. b3 {[%clk 0:03:00]}  e6 {[%clk 0:03:00]} 2. Bb2 {[%clk 0:03:01]}  d5 {[%clk 0:03:01]} 3. e3 {[%clk 0:03:02]}  Nf6 {[%clk 0:03:01]} 4. Nf3 {[%clk 0:03:03]}  Bd6 {[%clk 0:02:59]} 5. d4 {[%clk 0:03:03]}  O-O {[%clk 0:02:59]} 6. Nbd2 {[%clk 0:03:04]}  b6 {[%clk 0:02:58]} 7. Ne5 {[%clk 0:03:01]}  Bb7 {[%clk 0:02:57]} 8. Bd3 {[%clk 0:03:01]}  c5 {[%clk 0:02:57]} 9. O-O {[%clk 0:02:51]}  Nc6 {[%clk 0:02:54]} 10. f4 {[%clk 0:02:49]}  cxd4 {[%clk 0:02:54]} 11. exd4 {[%clk 0:02:50]}  Nb4 {[%clk 0:02:53]} 12. Be2 {[%clk 0:02:49]}  Rc8 {[%clk 0:02:47]} 13. c3 {[%clk 0:02:39]}  Nc6 {[%clk 0:02:48]} 14. Bd3 {[%clk 0:02:40]}  Ne7 {[%clk 0:02:49]} 15. Qf3 {[%clk 0:02:38]}  Qc7 {[%clk 0:02:22]} 16. Rae1 {[%clk 0:02:37]}  a6 {[%clk 0:02:09]} 17. Qh3 {[%clk 0:02:33]}  b5 {[%clk 0:02:05]} 18. g4 {[%clk 0:02:32]}  Ne4 {[%clk 0:01:37]} 19. Nxe4 {[%clk 0:02:24]}  dxe4 {[%clk 0:01:38]} 20. Bxe4 {[%clk 0:02:24]}  Bxe4 {[%clk 0:01:39]} 21. Rxe4 {[%clk 0:02:25]}  Nd5 {[%clk 0:01:40]} 22. c4 {[%clk 0:02:07]}  bxc4 {[%clk 0:01:34]} 23. bxc4 {[%clk 0:02:08]}  Nf6 {[%clk 0:01:30]} 24. Re2 {[%clk 0:02:03]}  Qb7 {[%clk 0:01:30]} 25. g5 {[%clk 0:01:56]}  Nd7 {[%clk 0:01:30]} 26. Nxd7 {[%clk 0:01:16]}  Qxd7 {[%clk 0:01:31]} 27. c5 {[%clk 0:01:03]}  Be7 {[%clk 0:01:26]} 28. f5 {[%clk 0:00:54]}  e5 {[%clk 0:01:24]} 29. dxe5 {[%clk 0:00:39]}  Bxc5+ {[%clk 0:01:20]} 30. Kh1 {[%clk 0:00:36]}  Qb5 {[%clk 0:01:16]} 31. Qg2 {[%clk 0:00:34]}  Ba7 {[%clk 0:00:57]} 32. f6 {[%clk 0:00:30]}  g6 {[%clk 0:00:54]} 33. e6 {[%clk 0:00:30]}  fxe6 {[%clk 0:00:51]} 34. Rxe6 {[%clk 0:00:31]}  Rf7 {[%clk 0:00:31]} 35. Rfe1 {[%clk 0:00:26]}  Qb8 {[%clk 0:00:23]} 36. Qe2 {[%clk 0:00:22]}  Bc5 {[%clk 0:00:18]} 37. Qxa6 {[%clk 0:00:13]}  Rd8 {[%clk 0:00:14]} 38. Qe2 {[%clk 0:00:12]}  Bf8 {[%clk 0:00:15]} 39. Qg2 {[%clk 0:00:06]}  Qb5 {[%clk 0:00:12]} 40. R6e5 {[%clk 0:00:05]}  Qa6 {[%clk 0:00:11]} 41. a3 {[%clk 0:00:04]}  Qc8 {[%clk 0:00:11]} 42. R5e2 {[%clk 0:00:04]}  Qc4 {[%clk 0:00:10]} 43. Re4 {[%clk 0:00:04]}  Qd5 {[%clk 0:00:10]} 44. Re8 {[%clk 0:00:03]}  Qd7 {[%clk 0:00:10]} 45. Rxd8 {[%clk 0:00:03]}  Qxd8 {[%clk 0:00:11]} 46. Qe4 {[%clk 0:00:03]}  Qb8 {[%clk 0:00:11]} 47. Qe2 {[%clk 0:00:03]}  Qb7+ {[%clk 0:00:11]} 48. Qg2 {[%clk 0:00:04]}  Qb5 {[%clk 0:00:12]} 49. Rd1 {[%clk 0:00:04]}  Qb3 {[%clk 0:00:12]} 50. Re1 {[%clk 0:00:03]}  Qb6 {[%clk 0:00:12]} 51. Qe2 {[%clk 0:00:03]}  Qc6+ {[%clk 0:00:12]} 52. Qe4 {[%clk 0:00:03]}  Qb5 {[%clk 0:00:12]} 53. Bc1 {[%clk 0:00:04]}  Qa5 {[%clk 0:00:11]} 54. Qe6 {[%clk 0:00:04]}  Qa8+ {[%clk 0:00:10]} 55. Kg1 {[%clk 0:00:05]}  Bc5+ {[%clk 0:00:09]} 56. Be3 {[%clk 0:00:04]}  Bf8 {[%clk 0:00:09]} 57. Bc1 {[%clk 0:00:04]}  Bc5+ {[%clk 0:00:08]} 58. Be3 {[%clk 0:00:04]}  Bxa3 {[%clk 0:00:08]} 59. Ra1 {[%clk 0:00:03]}  Qf8 {[%clk 0:00:09]} 60. Bd4 {[%clk 0:00:02]}  Bc5 {[%clk 0:00:09]} 61. Bxc5 {[%clk 0:00:01]}  Qxc5+ {[%clk 0:00:09]} 62. Kg2 {[%clk 0:00:02]}  Qxg5+ {[%clk 0:00:10]} 63. Kh1 {[%clk 0:00:02]}  Qxf6 {[%clk 0:00:10]} 64. Ra8+ {[%clk 0:00:02]}  Kg7 {[%clk 0:00:11]} 65. Qxf6+ {[%clk 0:00:03]}  Rxf6 {[%clk 0:00:11]} 66. Ra2 {[%clk 0:00:04]}  Rb6 {[%clk 0:00:11]} 67. Kg2 {[%clk 0:00:05]}  g5 {[%clk 0:00:11]} 68. Rc2 {[%clk 0:00:06]}  Kg6 {[%clk 0:00:12]} 69. Rd2 {[%clk 0:00:06]}  Kh5 {[%clk 0:00:12]} 70. Rc2 {[%clk 0:00:07]}  Rb4 {[%clk 0:00:11]} 71. Rd2 {[%clk 0:00:08]}  Kh4 {[%clk 0:00:11]} 72. Rc2 {[%clk 0:00:06]}  h5 {[%clk 0:00:12]} 73. Rd2 {[%clk 0:00:06]}  Kg4 {[%clk 0:00:12]} 74. Rc2 {[%clk 0:00:06]}  Kf4 {[%clk 0:00:11]} 75. Rf2+ {[%clk 0:00:06]}  Kg4 {[%clk 0:00:11]} 76. Rd2 {[%clk 0:00:07]}  h4 {[%clk 0:00:12]} 77. h3+ {[%clk 0:00:06]}  Kf5 {[%clk 0:00:12]} 78. Rf2+ {[%clk 0:00:06]}  Rf4 {[%clk 0:00:13]} 79. Rc2 {[%clk 0:00:06]}  Rd4 {[%clk 0:00:13]} 80. Rf2+ {[%clk 0:00:07]}  Ke4 {[%clk 0:00:14]} 81. Re2+ {[%clk 0:00:05]}  Kf4 {[%clk 0:00:14]} 82. Rf2+ {[%clk 0:00:06]}  Ke3 {[%clk 0:00:15]} 83. Rf5 {[%clk 0:00:04]}  Rd2+ {[%clk 0:00:09]} 84. Kg1 {[%clk 0:00:05]}  Rd4 {[%clk 0:00:03]} 85. Rxg5 {[%clk 0:00:03]}  Kf3 {[%clk 0:00:03]} 86. Rg6 {[%clk 0:00:03]}  Rc4 {[%clk 0:00:03]} 87. Rg7 {[%clk 0:00:03]}  Rb4 {[%clk 0:00:04]} 88. Rg8 {[%clk 0:00:03]}  Ra4 {[%clk 0:00:04]} 89. Rg7 {[%clk 0:00:04]}  Rf4 {[%clk 0:00:05]} 90. Rg6 {[%clk 0:00:04]}  Re4 {[%clk 0:00:05]} 91. Rg4 {[%clk 0:00:04]}  Re1+ {[%clk 0:00:03]} 92. Kh2 {[%clk 0:00:05]}  Re2+ {[%clk 0:00:03]} 93. Kh1 {[%clk 0:00:05]}  Ra2 {[%clk 0:00:04]} 94. Rxh4 {[%clk 0:00:02]}  Kg3 {[%clk 0:00:04]} 95. Rg4+ {[%clk 0:00:00]}  Kxh3 {[%clk 0:00:05]} 0-1


[Site "https://www.chess.com"]

[Event "Titled Tuesday Blitz November 14 Late 2023"]
[White "Yoo, Christopher Woojin"]
[Black "Korchmar, Vasiliy"]
[WhiteFideId "30909694"]
[BlackFideId "24131750"]
[WhiteElo "3070"]
[BlackElo "2763"]
[Result "1-0"]
[Round "3"]
[TimeControl "180+1"]
[Date "2023.11.14"]
[WhiteClock "0:00:08"]
[BlackClock "0:00:00"]
[Board "6"]

1. d4 {[%clk 0:02:53]}  Nf6 {[%clk 0:02:59]} 2. Nf3 {[%clk 0:02:50]}  d5 {[%clk 0:02:59]} 3. c4 {[%clk 0:02:50]}  e6 {[%clk 0:03:00]} 4. Nc3 {[%clk 0:02:48]}  dxc4 {[%clk 0:03:00]} 5. Qa4+ {[%clk 0:02:42]}  Nbd7 {[%clk 0:02:56]} 6. e4 {[%clk 0:02:39]}  a6 {[%clk 0:02:53]} 7. Bxc4 {[%clk 0:02:38]}  Rb8 {[%clk 0:02:36]} 8. Qc2 {[%clk 0:02:27]}  b5 {[%clk 0:02:34]} 9. Bd3 {[%clk 0:02:10]}  c5 {[%clk 0:02:34]} 10. Bf4 {[%clk 0:01:49]}  Ra8 {[%clk 0:02:26]} 11. d5 {[%clk 0:01:42]}  c4 {[%clk 0:02:01]} 12. dxe6 {[%clk 0:01:32]}  cxd3 {[%clk 0:01:47]} 13. exd7+ {[%clk 0:01:29]}  Qxd7 {[%clk 0:01:42]} 14. Qb3 {[%clk 0:01:29]}  Qe6 {[%clk 0:01:04]} 15. O-O-O {[%clk 0:01:28]}  Qxb3 {[%clk 0:00:58]} 16. axb3 {[%clk 0:01:28]}  Be6 {[%clk 0:00:54]} 17. Nd4 {[%clk 0:01:24]}  b4 {[%clk 0:00:44]} 18. Nxe6 {[%clk 0:01:16]}  fxe6 {[%clk 0:00:44]} 19. Na4 {[%clk 0:01:15]}  Nxe4 {[%clk 0:00:45]} 20. Rhe1 {[%clk 0:00:59]}  Nxf2 {[%clk 0:00:21]} 21. Rd2 {[%clk 0:00:53]}  Rc8+ {[%clk 0:00:21]} 22. Kb1 {[%clk 0:00:53]}  Rc2 {[%clk 0:00:22]} 23. Rxc2 {[%clk 0:00:49]}  dxc2+ {[%clk 0:00:23]} 24. Kxc2 {[%clk 0:00:49]}  Kf7 {[%clk 0:00:23]} 25. h3 {[%clk 0:00:31]}  Be7 {[%clk 0:00:23]} 26. Nb6 {[%clk 0:00:30]}  Rd8 {[%clk 0:00:17]} 27. Rf1 {[%clk 0:00:25]}  Bc5 {[%clk 0:00:13]} 28. Nc4 {[%clk 0:00:15]}  Kg8 {[%clk 0:00:07]} 29. Ra1 {[%clk 0:00:13]}  Ra8 {[%clk 0:00:03]} 30. Re1 {[%clk 0:00:11]}  Kf7 {[%clk 0:00:02]} 31. Be3 {[%clk 0:00:08]}  Bxe3 {[%clk 0:00:01]} 32. Rxe3 {[%clk 0:00:08]}  Ke7 {[%clk 0:00:02]} 33. Re2 {[%clk 0:00:05]}  Rf8 {[%clk 0:00:02]} 34. Ne5 {[%clk 0:00:04]}  Nh1 {[%clk 0:00:01]} 35. Nc6+ {[%clk 0:00:02]}  Kd6 {[%clk 0:00:02]} 36. Nxb4 {[%clk 0:00:03]}  Ng3 {[%clk 0:00:02]} 37. Rd2+ {[%clk 0:00:02]}  Kc5 {[%clk 0:00:02]} 38. Nxa6+ {[%clk 0:00:02]}  Kb6 {[%clk 0:00:02]} 39. Rd6+ {[%clk 0:00:02]}  Kb5 {[%clk 0:00:02]} 40. Nc7+ {[%clk 0:00:03]}  Kb4 {[%clk 0:00:02]} 41. Rb6+ {[%clk 0:00:02]}  Kc5 {[%clk 0:00:02]} 42. Nxe6+ {[%clk 0:00:03]}  Kxb6 {[%clk 0:00:02]} 43. Nxf8 {[%clk 0:00:03]}  Nf1 {[%clk 0:00:02]} 44. Kd3 {[%clk 0:00:02]}  Kb5 {[%clk 0:00:03]} 45. Nxh7 {[%clk 0:00:02]}  Kb4 {[%clk 0:00:03]} 46. Ng5 {[%clk 0:00:03]}  Kxb3 {[%clk 0:00:04]} 47. Ne6 {[%clk 0:00:03]}  g6 {[%clk 0:00:04]} 48. Nf4 {[%clk 0:00:03]}  g5 {[%clk 0:00:04]} 49. Ne6 {[%clk 0:00:04]}  g4 {[%clk 0:00:05]} 50. hxg4 {[%clk 0:00:04]}  Nh2 {[%clk 0:00:05]} 51. g5 {[%clk 0:00:04]}  Ng4 {[%clk 0:00:05]} 52. Ke4 {[%clk 0:00:05]}  Kxb2 {[%clk 0:00:05]} 53. Kf4 {[%clk 0:00:06]}  Nf2 {[%clk 0:00:03]} 54. g6 {[%clk 0:00:06]}  Nd3+ {[%clk 0:00:04]} 55. Kf5 {[%clk 0:00:07]}  Nb4 {[%clk 0:00:02]} 56. g7 {[%clk 0:00:07]}  Nd5 {[%clk 0:00:03]} 57. Ke5 {[%clk 0:00:07]}  Ne7 {[%clk 0:00:03]} 58. Nd4 {[%clk 0:00:07]}  Kc3 {[%clk 0:00:03]} 59. Nf5 {[%clk 0:00:07]}  Ng8 {[%clk 0:00:03]} 60. Ke6 {[%clk 0:00:08]}  Kd3 {[%clk 0:00:00]} 61. Kf7 {[%clk 0:00:08]} 1-0


[Site "https://www.chess.com"]